[Event "GER-ch Youth-U18 2022"]
[Site "Willingen"]
[Date "2022.06.10"]
[Round "8.6"]
[White "Hassemeier, Mika"]
[Black "Weihrauch, Jakob"]
[Result "1/2-1/2"]
[ECO "B23"]
[WhiteElo "2127"]
[BlackElo "2139"]
[Annotator "TA"]
[PlyCount "126"]
[EventDate "2022.06.05"]
[EventType "swiss"]
[EventRounds "9"]
[EventCountry "GER"]
[SourceTitle "playchess.com"]
[Source "ChessBase"]
[SourceQuality "1"]
[TimeControl "40/4500+30:900+30"]

{[%evp 10,126,20,-1,28,-9,0,-10,-6,1,12,4,44,14,0,0,0,0,0,-8,0,0,0,0,0,0,0,0,23,-10,-2,-10,-20,-33,-26,-28,-19,-64,-55,-111,0,-8,-3,-8,0,-64,-58,-73,0,-22,0,0,0,0,0,0,0,0,0,0,0,0,0,0,0,0,8,0,0,0,0,0,0,0,0,0,0,0,0,0,0,0,0,0,0,0,0,-10,-20,-25,0,-8,0,0,-5,-7,-11,-8,-8,-20,-8,-8,-11,-31,0,0,0,0,0,0,0,0,0,0,0,0,0,0,0]} 1. e4 {[%emt 0:00:00]} c5 {[%emt 0:00:00]} 2. Nc3 {[%emt 0:00:00]} a6 {[%emt 0:00:00]} 3. g3 {[%emt 0:00:00]} b5 {[%emt 0:00:00]} 4. Bg2 {[%emt 0:00:00]} Bb7 {[%emt 0:00:00]} 5. d3 {[%emt 0:00:00]} e6 {[%emt 0:00:00]} 6. f4 {[%emt 0:00:00]} b4 {[%emt 0:00:00] B23: Closed Sicilian: Lines without g3.} 7. Nce2 {[%emt 0:00:00]} d5 {[%emt 0:00:00]} 8. e5 {[%emt 0:00:00][%cal Of4f5]} Nh6 {[%emt 0:00:00]} 9. Nf3 {[%emt 0:00:00]} Nc6 {[%emt 0:04:48]} 10. O-O {[%emt 0:00:00] [#]} Qb6 $146 {[%emt 0:05:09]} ({Predecessor:} 10... Nf5 11. g4 Nh4 12. Nxh4 Qxh4 13. Ng3 O-O-O 14. a3 f6 15. axb4 cxb4 16. d4 h5 17. gxh5 fxe5 18. dxe5 {1-0 (35) Hess,R (2591)-Pushkarev,D (2379) Chess.com INT 2020}) 11. c3 {[%emt 0:00:00]} Be7 {[%emt 0:05:37]} 12. d4 {[%emt 0:03:54]} a5 {[%emt 0:03:17]} 13. Bh3 {[%emt 0:16:44]} Ba6 {[%emt 0:10:52]} 14. Be3 {[%emt 0:03:49]} cxd4 {[%emt 0:14:13]} (14... bxc3 {keeps more tension.} 15. bxc3 cxd4 16. Nfxd4 Nxd4 17. Bxd4 Bc5) 15. cxd4 {[%emt 0:01:32]} Nf5 {[%emt 0:00:27]} 16. Bf2 {[%emt 0:16:57]} h5 {[%emt 0:05:04]} 17. Re1 {[%emt 0:07:56]} g6 {[%emt 0:12:37]} 18. Bxf5 {[%emt 0:05:39]} exf5 {[%emt 0:02:13]} 19. Nc1 {[%emt 0:04:29]} (19. e6 $5) 19... Nd8 {[%emt 0:01:51]} 20. Nb3 {[%emt 0:01:07]} Ne6 {[%emt 0:03:27]} 21. Rc1 {[%emt 0:01:31]} (21. Nc5 {is interesting.} Qb5 22. a3 O-O 23. axb4 Qxb4 24. Ra4) 21... O-O {[%emt 0:04:05]} 22. Nc5 {[%emt 0:02:18]} Rfc8 {[%emt 0:00:13]} 23. Nxa6 {[%emt 0:01:58][%cal Oa6c5] Strongly threatening Nc5!} Qxa6 {[%emt 0:00:08]} 24. Qa4 {[%emt 0:04:24] [#]} ({White should try} 24. Rxc8+ $15 Rxc8 25. Be3) 24... Rc4 {[%emt 0:03:51]} (24... Rxc1 $1 $17 25. Rxc1 Qe2) 25. Qd7 {[%emt 0:01:40] [#]} Qc8 $1 {[%emt 0:01:11]} 26. Qxc8+ {[%emt 0:01:42]} Raxc8 {[%emt 0:00:01]} 27. Rxc4 ({White should play} 27. Be3 $11) 27... Rxc4 $15 {[%emt 0:00:17]} 28. Kf1 {[%emt 0:05:04] [#]} Bd8 {[%emt 0:00:32]} ({Reject} 28... Rc2 $6 29. Re2 Rc7 30. Ne1 $11) (28... g5 $1 $17) 29. Rd1 {[%emt 0:00:38]} a4 {[%emt 0:04:19]} 30. Ke2 {[%emt 0:01:19]} Ba5 {[%emt 0:02:54]} 31. Be3 {[%emt 0:02:11]} b3 {[%emt 0:01:10]} 32. axb3 {[%emt 0:00:19]} Rc2+ {[%emt 0:00:56]} 33. Kd3 {[%emt 0:00:38]} axb3 {[%emt 0:00:07]} 34. Bd2 {[%emt 0:01:13]} Bxd2 {[%emt 0:00:44]} 35. Rxd2 $11 {[%emt 0:00:34][%mdl 4096] Endgame KRN-KRN} Rc1 {[%emt 0:01:34]} 36. Ke3 {[%emt 0:01:46]} Rb1 $1 {[%emt 0:01:05]} 37. Re2 {[%emt 0:00:48]} Nc7 {[%emt 0:00:31]} 38. Kd3 {[%emt 0:00:30]} Nb5 $1 {[%emt 0:00:20]} 39. Ng5 {[%emt 0:01:10]} Rd1+ {[%emt 0:00:37]} 40. Rd2 {[%emt 0:00:06]} Rc1 {[%emt 0:00:23]} ({Resist} 40... Rxd2+ 41. Kxd2 Nxd4 42. Kd3 $16) 41. Nf3 {[%emt 0:00:00]} Na7 {[%emt 0:00:00]} 42. Re2 {[%emt 0:00:00]} Nc6 {[%emt 0:00:00]} 43. Nd2 {[%emt 0:01:06]} Na5 {[%emt 0:02:30]} 44. e6 {[%emt 0:02:03]} fxe6 {[%emt 0:00:56]} 45. Rxe6 {[%emt 0:00:11]} Kf7 {[%emt 0:01:43]} 46. Ra6 {[%emt 0:08:48]} Nc4 {[%emt 0:00:13] aiming for ...Rd1.} 47. Nxb3 {[%emt 0:00:45]} Nxb2+ {[%emt 0:00:07]} 48. Ke2 {[%emt 0:02:34]} Rc2+ {[%emt 0:01:03]} 49. Kf1 $1 {[%emt 0:00:13]} Nc4 {[%emt 0:04:04]} 50. Ra7+ {[%emt 0:00:57]} Kg8 {[%emt 0:02:53]} 51. Nc5 {[%emt 0:01:26]} Nd2+ {[%emt 0:01:15]} 52. Ke2 {[%emt 0:03:08]} Ne4+ {[%emt 0:01:53]} 53. Ke3 {[%emt 0:00:33]} Rxh2 {[%emt 0:02:29] Hoping for ...Rg2.} 54. Ne6 {[%emt 0:01:01]} Nxg3 {[%emt 0:01:43]} 55. Rg7+ {[%emt 0:00:32]} Kh8 {[%emt 0:00:00] And now ...Re2+ would win.} 56. Rxg6 {[%emt 0:00:41]} Ne4 {[%emt 0:00:27]} 57. Ng5 {[%emt 0:01:04] The position is equal.} h4 {[%emt 0:01:10]} 58. Nf3 {[%emt 0:01:19]} Kh7 {[%emt 0:00:54]} 59. Rg1 {[%emt 0:00:36]} Rh3 {[%emt 0:00:30][%cal Oe4d2] Threatens to win with ...Nd2!} 60. Ke2 {[%emt 0:00:04] Against Nd2} Rg3 {[%emt 0:01:08]} 61. Rxg3 {[%emt 0:00:40]} hxg3 {[%emt 0:00:20]} 62. Nh4 {[%emt 0:00:08]} Kg8 {[%emt 0:01:04]} 63. Kf3 {[%emt 0:00:12]} Nd6 {[%emt 0:00:25] Weighted Error Value: White=0.07 (flawless) /Black=0.07 (flawless)} 1/2-1/2

[Event "GER-ch Youth-U18 2022"]
[Site "Willingen"]
[Date "2022.06.10"]
[Round "8.7"]
[White "Haack, Kevin"]
[Black "Leonard, Timo"]
[Result "0-1"]
[ECO "D10"]
[WhiteElo "2176"]
[BlackElo "2018"]
[Annotator "TA"]
[PlyCount "120"]
[EventDate "2022.06.05"]
[EventType "swiss"]
[EventRounds "9"]
[EventCountry "GER"]
[SourceTitle "playchess.com"]
[Source "ChessBase"]
[SourceQuality "1"]
[TimeControl "40/4500+30:900+30"]

{[%evp 11,120,8,25,24,26,25,18,18,27,20,28,14,30,10,56,15,15,0,0,0,2,0,0,0,0,0,0,0,51,47,95,56,66,68,75,41,96,71,129,135,137,66,77,64,136,131,120,61,185,154,245,225,232,78,175,187,195,170,156,179,185,169,242,240,200,207,252,80,314,324,297,60,75,46,54,12,10,3,13,0,4,-676,-642,-29976,-29977,-29977,-29978,-29981,-29982,-29982,-29983,-29988,-29989,-29981,-644,-29990,-29977,-29976,-29975,-29975,-29976,-29974,-29976,-29977,-29978,-29978,-29979,-29978,-29979,-29980,-29979]} 1. d4 {[%emt 0:00:00]} d5 {[%emt 0:00:00]} 2. c4 {[%emt 0:00:00]} c6 {[%emt 0:00:00]} 3. cxd5 {[%emt 0:00:00]} cxd5 {[%emt 0:00:00]} 4. Nc3 {[%emt 0:00:00]} Nf6 {[%emt 0:00:00]} 5. Nf3 {[%emt 0:00:00]} Nc6 {[%emt 0:00:00]} 6. e3 {[%emt 0:00:00]} a6 $1 {[%emt 0:00:00][%mdl 4] outshines the older 6...e6.} 7. Ne5 {[%emt 0:00:00] D15: Slav Defence: 4 Nc3 a6 and gambit lines after 4 Nc3 dxc4.} e6 {[%emt 0:01:27]} 8. f4 {[%emt 0:00:00]} Bd7 {[%emt 0:06:57]} 9. Bd3 {[%emt 0:00:00] The position is equal.} Rc8 {[%emt 0:04:16]} 10. O-O {[%emt 0:00:38] [#]} Be7 $146 {[%emt 0:14:00]} ({Predecessor:} 10... Bb4 11. Bd2 O-O 12. Qf3 Na5 13. g4 Bxc3 14. Bxc3 Bb5 15. Bxb5 axb5 16. f5 Nc4 {0-1 (48) Labussiere,V (2332)-Sturt,R (2481) Florianopolis 2021}) 11. Bd2 {[%emt 0:03:24]} O-O {[%emt 0:00:34]} 12. Be1 {[%emt 0:03:22]} Na5 {[%emt 0:02:38]} (12... Nb4 $11) 13. Rf3 {[%emt 0:15:27]} Nc4 {[%emt 0:03:00]} 14. Rh3 {[%emt 0:02:11][%cal Od3h7] Threatens to win with Bxh7+!} g6 $1 {[%emt 0:01:35]} (14... Nxb2 $2 15. Bxh7+ $1 {[%mdl 512]} Kh8 16. Qb1 $18) 15. Qe2 {[%emt 0:03:43][%cal Re5c4]} b5 {[%emt 0:01:29]} 16. Nd1 {[%emt 0:10:13]} Ne4 {[%emt 0:02:39]} 17. Nxc4 {[%emt 0:07:13]} bxc4 {[%emt 0:00:28]} 18. Bxe4 {[%emt 0:00:05]} dxe4 {[%emt 0:00:05]} 19. g4 {[%emt 0:00:26]} c3 {[%emt 0:07:02]} (19... f5 $11) 20. Nxc3 $14 {[%emt 0:07:52]} Rb8 {[%emt 0:04:57]} (20... Qb6 $14) 21. Rg3 {[%emt 0:02:26]} (21. Qxa6 $6 Rxb2 22. Rd1 Qc8 23. Qxc8 Rxc8 $11) 21... Qb6 {[%emt 0:02:04]} 22. Rg2 {[%emt 0:00:13]} Rfc8 {[%emt 0:00:44]} 23. g5 {[%emt 0:02:20]} (23. Nxe4 $2 Bc6 24. Nf2 Bxg2 25. Kxg2 Qxb2 26. Qxb2 Rxb2 $19) 23... a5 {[%emt 0:04:09]} (23... h5 $14) 24. a3 {[%emt 0:03:03]} (24. Nxe4 $2 Bc6 25. Nf2 Bxg2 26. Kxg2 Qxb2 27. Qxb2 Rxb2 28. Bxa5 Rcc2 $17) 24... Rc7 {[%emt 0:03:08]} (24... Bb5 $142 25. Qxb5 (25. Nxb5 Qxb5 26. Qxb5 Rxb5 $16) 25... Qxb5 26. Nxb5 Rxb5) 25. h4 $16 {[%emt 0:02:04][%cal Bh2h4,Bh4h5][%mdl 32]} ({Stronger than} 25. Nxe4 Bc6 26. Qc2 Qb7 27. Bxa5 (27. d5 $2 Bxd5 28. Nc3 Bxg2 $19) 27... Bxe4 28. Qxc7 Bxg2 29. Qxb7 Bxb7 $17) 25... Rcb7 {[%emt 0:01:09]} 26. Nd1 {[%emt 0:01:13]} ({Resist} 26. Nxe4 $6 Qd8 $14) ({White should try} 26. Rc1 $1 $16) 26... Bb5 $14 {[%emt 0:01:22]} 27. Qf2 {[%emt 0:00:23]} Bd3 {[%emt 0:03:09]} (27... Ba4 $14) 28. h5 $1 $16 {[%emt 0:00:57]} Qb5 {[%emt 0:01:27]} 29. Bc3 {[%emt 0:00:49]} (29. Qh4 $16) 29... Qf5 {[%emt 0:02:29]} (29... gxh5 $14 30. d5 Qa6) 30. Qh4 {[%emt 0:02:08]} e5 {[%emt 0:11:01]} (30... f6 $16 {might work better.}) 31. hxg6 {[%emt 0:04:08]} fxg6 {[%emt 0:00:55]} 32. Rh2 $2 {[%emt 0:02:01]} (32. dxe5 $18 {and the rest is easy.} a4 33. Qg3 (33. Rh2 h5 $16)) 32... Bd8 {[%emt 0:00:29]} (32... exf4 $16 33. exf4 (33. Qxh7+ Kf8 $14) 33... Qf7) 33. dxe5 $18 {[%emt 0:01:09]} Bb6 {[%emt 0:01:07]} 34. Qg3 {[%emt 0:03:21]} Rf8 {[%emt 0:02:40]} 35. Rf2 {[%emt 0:02:14]} Rd7 {[%emt 0:00:38] [#]} 36. Bd4 $1 {[%emt 0:00:47]} Bxd4 {[%emt 0:01:08]} (36... Rxd4 {is a better defense.} 37. exd4 Bxd4) 37. exd4 {[%emt 0:00:04]} Rxd4 {[%emt 0:00:29]} 38. Ne3 {[%emt 0:00:11]} Qc8 {[%emt 0:01:16]} 39. Kg2 $2 {[%emt 0:04:16]} (39. Ng4 $18) 39... Rf7 $2 {[%emt 0:01:40]} (39... Bb5 $16 {was worth a try.}) 40. Rh1 {[%emt 0:01:38]} Ba6 {[%emt 0:02:45] [#]} 41. Re1 $2 {[%emt 0:00:00]} (41. f5 $1 $18 {e6 is the strong threat.} Rxf5 42. Nxf5 gxf5 43. Qh3) 41... Bb7 $14 {[%emt 0:00:00]} 42. Kh2 {[%emt 0:00:00][%cal Of4f5]} (42. Qh3 $5 {[%cal Re5e6]}) 42... Rd3 {[%emt 0:00:00]} 43. Qh4 {[%emt 0:00:00]} Qc6 {[%emt 0:00:00]} 44. Rc2 {[%emt 0:03:00]} Qb6 {[%emt 0:01:26]} 45. Rce2 {[%emt 0:02:36]} Qe6 {[%emt 0:03:49]} 46. Ng4 $2 {[%emt 0:01:12][%mdl 8192]} (46. Rc1 $11) 46... Rxf4 $19 {[%emt 0:02:31]} 47. Nf6+ {[%emt 0:04:08] [#]} Qxf6 $3 {[%emt 0:01:28][%mdl 512]} 48. Qxh7+ {[%emt 0:01:09]} Kxh7 {[%emt 0:00:04]} 49. gxf6 {[%emt 0:00:04]} Rh4+ {[%emt 0:02:41]} 50. Kg1 {[%emt 0:00:10]} Rg3+ {[%emt 0:02:58]} 51. Kf2 {[%emt 0:05:15]} Rf3+ {[%emt 0:00:06]} 52. Kg1 {[%emt 0:00:11]} Rf5 {[%emt 0:02:46]} (52... e3 $142 53. Rxe3 Rff4 54. Rf3 Rxf3 55. Re2 Rf5 56. Rg2 Bxg2 57. Kxg2 Kh6 58. f7 Kh5 59. f8=Q Rxf8 60. Kg1 Kg5 61. e6 Rg4+ 62. Kh2 Rh8#) 53. Rc1 {[%emt 0:02:22]} Rg4+ {[%emt 0:00:48] Black mates.} 54. Rg2 {[%emt 0:00:04]} Rxg2+ {[%emt 0:00:14]} 55. Kxg2 {[%emt 0:00:04] KRB-KR} e3+ {[%emt 0:00:17][%cal Be4e3,Be3e2][%mdl 32]} 56. Kg3 {[%emt 0:01:38]} e2 {[%emt 0:02:18]} 57. f7 {[%emt 0:01:33]} Rxf7 {[%emt 0:00:20]} 58. Re1 {[%emt 0:00:12]} Ba6 {[%emt 0:00:09]} 59. e6 {[%emt 0:00:24]} Re7 {[%emt 0:00:08]} 60. b4 {[%emt 0:00:31]} Rxe6 {[%emt 0:00:12] Black used his chance.  Weighted Error Value: White=0.58/Black=0.36} 0-1

[Event "GER-ch Youth-U18 2022"]
[Site "Willingen"]
[Date "2022.06.10"]
[Round "8.8"]
[White "Muller, Magnus"]
[Black "Jeschke, Jan"]
[Result "0-1"]
[ECO "A45"]
[WhiteElo "1464"]
[BlackElo "2130"]
[Annotator "TA"]
[PlyCount "84"]
[EventDate "2022.06.05"]
[EventType "swiss"]
[EventRounds "9"]
[EventCountry "GER"]
[SourceTitle "playchess.com"]
[Source "ChessBase"]
[SourceQuality "1"]
[TimeControl "40/4500+30:900+30"]

{[%evp 9,84,9,8,6,24,0,53,12,43,13,90,111,68,86,127,139,143,113,121,126,138,61,67,34,73,56,114,113,158,133,147,118,160,162,154,163,225,195,230,237,260,256,265,251,240,237,252,0,0,0,33,-16,-16,-16,-14,-17,-16,-15,-15,-147,-147,-147,-147,-489,-487,-442,-430,-4614,-4602,-29985,-29986,-29987,-29988,-29988,-29989,-29988,-29989]} 1. d4 {[%emt 0:00:00]} Nf6 {[%emt 0:00:00]} 2. Nc3 {[%emt 0:00:00]} d5 {[%emt 0:00:00]} 3. Bf4 {[%emt 0:00:00]} Bf5 {[%emt 0:00:00]} 4. e3 {[%emt 0:00:00]} e6 {[%emt 0:00:00]} 5. Nf3 {[%emt 0:00:00]} Bd6 {[%emt 0:06:28]} 6. Ne5 {[%emt 0:00:00] D02: 1 d4 d5 2 Nf3 sidelines, including 2...Nf6 3 g3 and 2...Nf6 3 Bf4.} a6 {[%emt 0:11:04]} 7. h3 {[%emt 0:00:00][%cal Bh2h3,Bh3h4][%mdl 32] [#]} c5 $146 {[%emt 0:01:41]} (7... Bxe5 $11 8. Bxe5 (8. dxe5 Nfd7 $11) 8... O-O) ({Predecessor:} 7... Ne4 8. Bd3 O-O 9. g4 Nxc3 10. bxc3 Bxd3 11. Nxd3 Qe7 12. h4 Nd7 13. Bxd6 Qxd6 {0-1 (69) Neumann,A-Bardo,K Schleswig Holstein 1991}) 8. g4 {[%emt 0:00:00] White is slightly better.} Bg6 {[%emt 0:14:12]} 9. h4 {[%emt 0:00:00]} (9. Nxg6 hxg6 10. Qf3 Bxf4 11. Qxf4 cxd4 12. exd4 Nbd7 $15) 9... h6 {[%emt 0:03:10]} (9... cxd4 $11 {keeps the balance.} 10. exd4 (10. Nxg6 hxg6 11. Bxd6 dxc3 $17) 10... h6) 10. Nxg6 $16 {[%emt 0:00:00]} fxg6 {[%emt 0:00:05]} 11. Bd3 {[%emt 0:00:00]} Bxf4 {[%emt 0:01:33]} 12. Bxg6+ {[%emt 0:01:12]} (12. exf4 $6 O-O $11) 12... Ke7 {[%emt 0:00:03][%cal Oc5d4]} 13. exf4 {[%emt 0:00:21]} cxd4 {[%emt 0:00:18]} 14. Qxd4 {[%emt 0:00:11]} Nc6 {[%emt 0:00:23]} 15. Qc5+ {[%emt 0:00:39]} (15. Qd3 $16) 15... Qd6 $1 $14 {[%emt 0:00:05]} 16. Qxd6+ {[%emt 0:00:05]} (16. Qb6 Nd7 17. Qb3 (17. Qxb7 $2 Rhb8 $19) 17... Nd4 $17) 16... Kxd6 {[%emt 0:00:03]} 17. f3 {[%emt 0:01:19][%cal Bf2f3,Bf3f4][%mdl 32]} Rhf8 {[%emt 0:00:26]} ({Black should try} 17... Ne7 $14 18. Bd3 h5) 18. O-O-O $16 {[%emt 0:00:17]} Nd7 {[%emt 0:00:29]} 19. Ne2 {[%emt 0:08:16]} Rac8 {[%emt 0:01:39]} 20. Rhe1 {[%emt 0:00:10]} b5 {[%emt 0:04:40]} 21. f5 {[%emt 0:03:15]} e5 {[%emt 0:03:22][%cal Be6e5,Be5e4,Be4d3,Bd3d2][%mdl 32]} 22. f4 {[%emt 0:01:22]} Nb4 {[%emt 0:01:08]} (22... Ne7 $142) 23. c3 {[%emt 0:00:21]} e4 {[%emt 0:00:37] [#]} 24. Nd4 $1 {[%emt 0:03:40]} Nd3+ {[%emt 0:01:26] [#]} 25. Rxd3 $1 {[%emt 0:00:07][%mdl 512]} exd3 {[%emt 0:00:03]} 26. Re6+ {[%emt 0:00:36][%mdl 64] Skewer} Kc7 {[%emt 0:00:44]} 27. Rxa6 {[%emt 0:00:14] Strongly threatening Ne6+.} Nf6 {[%emt 0:07:07]} 28. Kd2 $2 {[%emt 0:09:00]} (28. Rc6+ $18 Kb8 29. Rb6+ Kc7 30. Rxb5) 28... Ne4+ $11 {[%emt 0:01:45]} 29. Ke3 {[%emt 0:01:29]} b4 {[%emt 0:04:36]} (29... d2 $5 30. Ke2 b4 31. Rc6+ (31. cxb4 $2 Kb7 $19) 31... Kd7 32. Rxc8 Rxc8 $11) 30. Re6 {[%emt 0:01:58]} ({Don't blunder} 30. cxb4 $2 d2 31. Ke2 Kb7 $19) (30. Rc6+ Kb7 31. Rxc8 Rxc8 32. Kxd3 bxc3 33. bxc3 Nf2+ 34. Kc2 Nxg4 $17) (30. Ne6+ $1 $14 Kb7 31. Ra5 bxc3 32. bxc3 (32. Nxf8 $2 c2 $19) 32... Rxc3 33. Rxd5 (33. Nxf8 d2+ 34. Ke2 d4 $19)) 30... d2 {[%emt 0:06:08]} 31. Ke2 {[%emt 0:00:06]} bxc3 {[%emt 0:00:11]} 32. bxc3 {[%emt 0:00:21]} Rb8 $36 {[%emt 0:06:42][%mdl 2048] ( -> ...Rb1). Black fights for an advantage.} 33. Rxe4 $1 {[%emt 0:01:12]} dxe4 {[%emt 0:00:12]} 34. Kxd2 {[%emt 0:00:09]} (34. Ne6+ $11 Kc6 35. Kxd2 (35. Nxf8 Rd8 $17)) 34... Kd6 $17 {[%emt 0:01:21]} 35. Ke3 {[%emt 0:01:24]} Rfc8 {[%emt 0:00:31]} 36. Kxe4 $2 {[%emt 0:00:24][%mdl 8192]} (36. Ne2 $17) 36... Rxc3 $19 {[%emt 0:00:28] And now ...Rb4 would win.} 37. f6 {[%emt 0:00:47]} gxf6 {[%emt 0:00:29] aiming for ...Rb4.} 38. Bf7 {[%emt 0:00:25]} (38. Nf5+ $142 Ke6 39. Kd4) 38... Rb4 {[%emt 0:00:50] White must now prevent ...Kc5.} 39. Kf5 {[%emt 0:01:15]} Rxd4 {[%emt 0:00:09] Black mates.} 40. Bh5 {[%emt 0:00:15]} Ke7 {[%emt 0:00:24]} 41. Kg6 {[%emt 0:15:14]} Rxf4 {[%emt 0:15:24]} 42. Kxh6 {[%emt 0:00:02]} Rh3 {[%emt 0:03:00] Never resign too early!  Weighted Error Value: White=0.65/Black=0.18 (very precise)} 0-1

[Event "GER-ch Youth-U18 2022"]
[Site "Willingen"]
[Date "2022.06.10"]
[Round "8.9"]
[White "Zackrisson, Peter"]
[Black "Weidemann, Jakob"]
[Result "1-0"]
[ECO "B40"]
[WhiteElo "2015"]
[BlackElo "2047"]
[Annotator "TA"]
[PlyCount "57"]
[EventDate "2022.06.05"]
[EventType "swiss"]
[EventRounds "9"]
[EventCountry "GER"]
[SourceTitle "playchess.com"]
[Source "ChessBase"]
[SourceQuality "1"]
[TimeControl "40/4500+30:900+30"]

{[%evp 9,57,9,14,10,17,0,0,1,0,-16,-13,-14,0,-2,10,0,58,82,76,77,100,94,266,264,253,269,260,254,263,262,289,301,329,347,365,349,392,399,553,414,412,406,655,665,657,648,625,577,659,630]} 1. e4 {[%emt 0:00:00]} c5 {[%emt 0:00:00]} 2. Nf3 {[%emt 0:00:00]} e6 {[%emt 0:00:00]} 3. g3 {[%emt 0:00:00]} Nc6 {[%emt 0:00:00]} 4. Bg2 {[%emt 0:00:00]} Nf6 {[%emt 0:00:00]} 5. Qe2 {[%emt 0:00:00]} e5 {[%emt 0:00:00]} 6. O-O {[%emt 0:00:00] B40: Sicilian: 2...e6, Unusual lines.} Be7 {[%emt 0:00:00]} 7. c3 {[%emt 0:00:00]} O-O {[%emt 0:00:00]} 8. Na3 $1 {[%emt 0:00:00][%cal Bb1a3,Ba3c4,Bc4e5,Be5f7,Bf7h6][%mdl 32] The position is equal. The main line 8.Na3 scores better than 8.Rd1.} Re8 {[%emt 0:00:00]} 9. Nc4 {[%emt 0:00:00]} Bf8 {[%emt 0:00:00][%cal Of6e4]} 10. d3 {[%emt 0:00:00]} h6 {[%emt 0:00:00] Prevents Bg5.} (10... d5 {with more complications.} 11. exd5 Nxd5 12. Qe4 Nf6) 11. a4 {[%emt 0:00:00]} d5 {[%emt 0:00:00]} 12. exd5 {[%emt 0:00:00]} Nxd5 {[%emt 0:00:00]} ({Better is} 12... Qxd5 $11 13. Be3 Qd7) 13. Nfxe5 $14 {[%emt 0:00:00]} (13. Ncxe5 Qd6 14. Re1 Nxe5 15. Nxe5 f6 $15) 13... Nxe5 {[%emt 0:06:13]} 14. Nxe5 {[%emt 0:00:00]} f6 {[%emt 0:04:37]} 15. Nf7 {[%emt 0:00:00] White is more active.} Qd7 {[%emt 0:14:31] [#] This costs Black the game.} (15... Rxe2 $2 16. Nxd8 Nc7 17. Bf3 $18 (17. Nxb7 Bg4 $18) (17. Bxb7 Bxb7 18. Nxb7 a5 $16)) (15... Nxc3 $16 16. bxc3 Kxf7 17. Qh5+ g6) 16. Nxh6+ $1 $18 {[%emt 0:17:42][%mdl 512]} Kh8 {[%emt 0:08:52]} 17. Qh5 {[%emt 0:01:32] [#]} gxh6 $146 {[%emt 0:01:03]} ({Predecessor:} 17... Re5 18. Nf7+ {½-½ (18) Bucher,G (2107)-Coathup,R (2152) Daventry 2020}) 18. Qxd5 {[%emt 0:00:46]} ({Much less strong is} 18. Bxd5 $6 Re5 19. Qf7 Qxf7 20. Bxf7 Bh3 $16) 18... Qxd5 {[%emt 0:04:06]} 19. Bxd5 {[%emt 0:00:10]} Re5 {[%emt 0:14:57]} 20. Bf3 {[%emt 0:05:22]} Bh3 {[%emt 0:04:05]} 21. Rd1 {[%emt 0:00:36][%cal Bf1d1,Bd1d2,Bd2d8][%mdl 32]} ({Less strong is} 21. Bxb7 Bxf1 22. Kxf1 (22. Bxa8 Re1 $16) 22... Rd8 $18) 21... Rd8 {[%emt 0:03:09]} 22. Be3 {[%emt 0:02:31]} ({But not} 22. Bxb7 Bg4 $18) 22... Re6 {[%emt 0:03:35]} 23. d4 {[%emt 0:00:56]} Rb6 {[%emt 0:00:16]} 24. Rd2 {[%emt 0:00:46]} cxd4 {[%emt 0:05:46]} 25. Bxd4 {[%emt 0:00:27]} Bc5 {[%emt 0:01:21] [#]} (25... a5 $142 26. Rad1 Rbd6 27. Bxb7 Kg7) 26. Bxf6+ $1 {[%emt 0:05:40][%mdl 512] White is clearly winning.} Rxf6 {[%emt 0:00:09]} 27. Rxd8+ {[%emt 0:00:07]} Kg7 {[%emt 0:00:06]} 28. Rd5 {[%emt 0:00:09]} Bb6 {[%emt 0:00:31]} 29. a5 {[%emt 0:00:09] Weighted Error Value: White=0.12 (very precise) /Black=0.44} 1-0